[Event "Early-Titled-Tuesday-Blitz-February-13-2024"]
[Site "Chess.com"]
[Date "2024.02.13"]
[Round "8"]
[White "Vigg-Sama"]
[Black "GlavkonVVS"]
[Result "0-1"]
[WhiteElo "2253"]
[BlackElo "2570"]
[TimeControl "180+1"]
[EndTime "9:30:47 PST"]
[Termination "GlavkonVVS won by resignation"]

1. e4 {[%clk 0:03:00.9]} 1... Nf6 {[%clk 0:02:59.9]} 2. e5 {[%clk 0:03:00.5]}
2... Nd5 {[%clk 0:02:59.6]} 3. c4 {[%clk 0:02:59.8]} 3... Nb6 {[%clk 0:02:59.5]}
4. d4 {[%clk 0:03:00.4]} 4... d6 {[%clk 0:02:59.7]} 5. f4 {[%clk 0:03:01]} 5...
dxe5 {[%clk 0:02:59.7]} 6. fxe5 {[%clk 0:03:01.9]} 6... c5 {[%clk 0:02:59.3]} 7.
d5 {[%clk 0:02:57]} 7... g6 {[%clk 0:02:59.3]} 8. Nc3 {[%clk 0:02:53.7]} 8...
Bg7 {[%clk 0:02:58.8]} 9. Bf4 {[%clk 0:02:52.9]} 9... O-O {[%clk 0:02:58.3]} 10.
Be2 {[%clk 0:02:51]} 10... e6 {[%clk 0:02:57]} 11. d6 {[%clk 0:02:42.2]} 11...
Nc6 {[%clk 0:02:56.9]} 12. Nf3 {[%clk 0:02:41.6]} 12... Nd7 {[%clk 0:02:56.8]}
13. Bg5 {[%clk 0:02:30.4]} 13... Qb6 {[%clk 0:02:54.6]} 14. Na4 {[%clk
0:02:22.6]} 14... Qa5+ {[%clk 0:02:54]} 15. Bd2 {[%clk 0:02:21.9]} 15... Qd8
{[%clk 0:02:47.6]} 16. Bg5 {[%clk 0:02:20.5]} 16... Qa5+ {[%clk 0:02:46.6]} 17.
Bd2 {[%clk 0:02:20.3]} 17... Qa6 {[%clk 0:02:47.1]} 18. Bc3 {[%clk 0:02:17.4]}
18... Ndxe5 {[%clk 0:02:39.2]} 19. Nxc5 {[%clk 0:02:12.7]} 19... Nxf3+ {[%clk
0:02:34.6]} 20. gxf3 {[%clk 0:02:05]} 20... Bxc3+ {[%clk 0:02:34.6]} 21. bxc3
{[%clk 0:02:02.4]} 21... Qa5 {[%clk 0:02:34.4]} 22. Ne4 {[%clk 0:01:57]} 22...
f5 {[%clk 0:02:16.4]} 23. Ng5 {[%clk 0:01:57]} 23... Qxc3+ {[%clk 0:02:13.5]}
24. Kf2 {[%clk 0:01:57.6]} 24... Bd7 {[%clk 0:02:03]} 25. Rb1 {[%clk 0:01:48.9]}
25... b6 {[%clk 0:02:02.2]} 26. h4 {[%clk 0:01:45.6]} 26... Qf6 {[%clk
0:01:58.2]} 27. f4 {[%clk 0:01:43.7]} 27... Rad8 {[%clk 0:01:53.7]} 28. c5
{[%clk 0:01:42]} 28... bxc5 {[%clk 0:01:52.2]} 29. Rb7 {[%clk 0:01:42.6]} 29...
Nd4 {[%clk 0:01:46.2]} 30. h5 {[%clk 0:01:37.4]} 30... h6 {[%clk 0:01:37.3]} 31.
Nf3 {[%clk 0:01:10.3]} 31... Bc6 {[%clk 0:01:35.6]} 32. Rxa7 {[%clk 0:01:05.7]}
32... Rxd6 {[%clk 0:01:28.8]} 33. Qg1 {[%clk 0:00:57.5]} 33... Nxe2 {[%clk
0:01:24.1]} 34. Kxe2 {[%clk 0:00:51.8]} 34... Qb2+ {[%clk 0:01:17.8]} 35. Ke3
{[%clk 0:00:47.6]} 35... Qc3+ {[%clk 0:01:11.9]} 36. Kf2 {[%clk 0:00:46.4]}
36... Qxf3+ {[%clk 0:01:11.6]} 0-1

[Event "Early-Titled-Tuesday-Blitz-February-13-2024"]
[Site "Chess.com"]
[Date "2024.02.13"]
[Round "8"]
[White "saraswathii"]
[Black "Keeper0416"]
[Result "0-1"]
[WhiteElo "2378"]
[BlackElo "2590"]
[TimeControl "180+1"]
[EndTime "9:30:50 PST"]
[Termination "Keeper0416 won by resignation"]

1. e4 {[%clk 0:03:00.6]} 1... c5 {[%clk 0:02:56]} 2. Nf3 {[%clk 0:03:01.5]} 2...
b6 {[%clk 0:02:55.6]} 3. d3 {[%clk 0:03:00.6]} 3... Bb7 {[%clk 0:02:55.7]} 4. g3
{[%clk 0:02:59.4]} 4... g6 {[%clk 0:02:56.1]} 5. Nbd2 {[%clk 0:02:58.2]} 5...
Bg7 {[%clk 0:02:56.6]} 6. Bg2 {[%clk 0:02:56.4]} 6... h5 {[%clk 0:02:52.1]} 7.
O-O {[%clk 0:02:53.5]} 7... Nc6 {[%clk 0:02:44.6]} 8. c3 {[%clk 0:02:49.4]} 8...
e6 {[%clk 0:02:41.4]} 9. h4 {[%clk 0:02:45.2]} 9... Nge7 {[%clk 0:02:37.7]} 10.
Nc4 {[%clk 0:02:43.3]} 10... d5 {[%clk 0:02:28.4]} 11. Ne3 {[%clk 0:02:32.4]}
11... dxe4 {[%clk 0:02:16.5]} 12. dxe4 {[%clk 0:02:30.8]} 12... Ba6 {[%clk
0:02:16]} 13. Re1 {[%clk 0:02:10.7]} 13... O-O {[%clk 0:02:06.8]} 14. Ng5 {[%clk
0:02:06.9]} 14... Qxd1 {[%clk 0:01:47.8]} 15. Rxd1 {[%clk 0:02:04.8]} 15... Rad8
{[%clk 0:01:44.1]} 16. Re1 {[%clk 0:01:59.8]} 16... Ne5 {[%clk 0:01:43.1]} 17.
f4 {[%clk 0:01:55.9]} 17... Nd3 {[%clk 0:01:40.5]} 18. Rd1 {[%clk 0:01:48.1]}
18... e5 {[%clk 0:01:28.9]} 19. Nd5 {[%clk 0:01:38]} 19... Nxd5 {[%clk
0:01:28.5]} 20. exd5 {[%clk 0:01:38.2]} 20... c4 {[%clk 0:01:24.4]} 21. Be3
{[%clk 0:01:28.4]} 21... Nxb2 {[%clk 0:01:15.1]} 22. Rd2 {[%clk 0:01:22.5]}
22... exf4 {[%clk 0:01:03.8]} 23. Bd4 {[%clk 0:01:02.5]} 23... Nd3 {[%clk
0:00:59.2]} 24. Bxg7 {[%clk 0:00:57.8]} 24... Kxg7 {[%clk 0:01:00.1]} 0-1

[Event "Early-Titled-Tuesday-Blitz-February-13-2024"]
[Site "Chess.com"]
[Date "2024.02.13"]
[Round "8"]
[White "Statham_01"]
[Black "temus_galaktionov"]
[Result "0-1"]
[WhiteElo "2586"]
[BlackElo "2882"]
[TimeControl "180+1"]
[EndTime "9:30:52 PST"]
[Termination "temus_galaktionov won by resignation"]

1. e4 {[%clk 0:03:00.9]} 1... c6 {[%clk 0:03:00.9]} 2. d4 {[%clk 0:03:00.7]}
2... g6 {[%clk 0:03:01.2]} 3. Nc3 {[%clk 0:02:58.4]} 3... d6 {[%clk 0:02:52.3]}
4. Bf4 {[%clk 0:02:52.5]} 4... Bg7 {[%clk 0:02:52.5]} 5. Qd2 {[%clk 0:02:51.9]}
5... Nd7 {[%clk 0:02:52.7]} 6. Nf3 {[%clk 0:02:50.5]} 6... e5 {[%clk 0:02:49.9]}
7. Bg5 {[%clk 0:02:42.4]} 7... Ngf6 {[%clk 0:02:49.8]} 8. O-O-O {[%clk
0:02:36.1]} 8... h6 {[%clk 0:02:49.6]} 9. Be3 {[%clk 0:02:29.5]} 9... Ng4 {[%clk
0:02:46.6]} 10. Bc4 {[%clk 0:02:23.1]} 10... Nxe3 {[%clk 0:02:45.9]} 11. fxe3
{[%clk 0:02:24]} 11... O-O {[%clk 0:02:43.5]} 12. h4 {[%clk 0:02:23.4]} 12...
Qe7 {[%clk 0:02:38.2]} 13. Bb3 {[%clk 0:02:15.3]} 13... Nf6 {[%clk 0:02:34.2]}
14. h5 {[%clk 0:01:49.7]} 14... Nxh5 {[%clk 0:02:30]} 15. Nh4 {[%clk 0:01:49.2]}
15... Qg5 {[%clk 0:02:26.8]} 16. Ne2 {[%clk 0:01:38]} 16... Bg4 {[%clk 0:02:23]}
17. Nf3 {[%clk 0:01:33.1]} 17... Qe7 {[%clk 0:02:19.6]} 18. Qe1 {[%clk
0:01:22.8]} 18... exd4 {[%clk 0:02:17]} 19. Ng3 {[%clk 0:01:07.5]} 19... Nxg3
{[%clk 0:02:10]} 20. Qxg3 {[%clk 0:01:08.4]} 20... Qxe4 {[%clk 0:02:09.8]} 21.
exd4 {[%clk 0:00:53.1]} 21... d5 {[%clk 0:02:09]} 22. Rde1 {[%clk 0:00:50]}
22... Qf5 {[%clk 0:02:05.4]} 23. Ne5 {[%clk 0:00:48.3]} 23... Qg5+ {[%clk
0:01:34.6]} 24. Kb1 {[%clk 0:00:47.9]} 24... Bf5 {[%clk 0:01:33.5]} 25. Qxg5
{[%clk 0:00:32.8]} 25... hxg5 {[%clk 0:01:34.4]} 26. g4 {[%clk 0:00:33.4]} 26...
Be4 {[%clk 0:01:32.7]} 27. Rxe4 {[%clk 0:00:20.9]} 27... dxe4 {[%clk 0:01:30.2]}
28. Nxf7 {[%clk 0:00:21.4]} 28... Rxf7 {[%clk 0:01:29.6]} 29. Rf1 {[%clk
0:00:21.3]} 29... Rf8 {[%clk 0:01:29]} 30. c3 {[%clk 0:00:20.2]} 30... Bh8
{[%clk 0:01:25.4]} 31. Kc2 {[%clk 0:00:11.5]} 31... Kg7 {[%clk 0:01:24.5]} 32.
Bxf7 {[%clk 0:00:09.8]} 32... Rxf7 {[%clk 0:01:25.4]} 33. Re1 {[%clk 0:00:10.7]}
33... Rf4 {[%clk 0:01:24.2]} 0-1

[Event "Early-Titled-Tuesday-Blitz-February-13-2024"]
[Site "Chess.com"]
[Date "2024.02.13"]
[Round "8"]
[White "Chernov_Alexander_A"]
[Black "yuriydovzik"]
[Result "1-0"]
[WhiteElo "2311"]
[BlackElo "2114"]
[TimeControl "180+1"]
[EndTime "9:30:55 PST"]
[Termination "Chernov_Alexander_A won on time"]

1. d4 {[%clk 0:02:57.9]} 1... c5 {[%clk 0:02:56.6]} 2. d5 {[%clk 0:02:57.3]}
2... e6 {[%clk 0:02:55.8]} 3. Nc3 {[%clk 0:02:57.4]} 3... Nf6 {[%clk 0:02:50.3]}
4. e4 {[%clk 0:02:57.2]} 4... d6 {[%clk 0:02:36.5]} 5. Nf3 {[%clk 0:02:56.3]}
5... e5 {[%clk 0:02:33]} 6. Be2 {[%clk 0:02:55.4]} 6... g6 {[%clk 0:02:29.9]} 7.
Nd2 {[%clk 0:02:53.3]} 7... Bg7 {[%clk 0:02:29.4]} 8. h4 {[%clk 0:02:52.8]} 8...
h5 {[%clk 0:02:23.3]} 9. Nc4 {[%clk 0:02:51.2]} 9... a6 {[%clk 0:02:17]} 10. a4
{[%clk 0:02:49.7]} 10... b6 {[%clk 0:01:58.5]} 11. Bg5 {[%clk 0:02:46.2]} 11...
Qc7 {[%clk 0:01:43.7]} 12. f4 {[%clk 0:02:34.9]} 12... Nfd7 {[%clk 0:01:21.4]}
13. f5 {[%clk 0:02:29.2]} 13... gxf5 {[%clk 0:01:04.9]} 14. exf5 {[%clk
0:02:27.6]} 14... Nf6 {[%clk 0:01:04.6]} 15. Bxf6 {[%clk 0:02:22.2]} 15... Bxf6
{[%clk 0:01:03.5]} 16. Ne4 {[%clk 0:02:22.3]} 16... Be7 {[%clk 0:00:58.5]} 17.
f6 {[%clk 0:02:13.5]} 17... Bf8 {[%clk 0:00:57]} 18. Bxh5 {[%clk 0:02:08.7]}
18... Bf5 {[%clk 0:00:54]} 19. Bf3 {[%clk 0:01:47.6]} 19... Nd7 {[%clk
0:00:49.1]} 20. Ncd2 {[%clk 0:01:27.8]} 20... O-O-O {[%clk 0:00:42.9]} 21. Qe2
{[%clk 0:01:26.4]} 21... Kb7 {[%clk 0:00:36.7]} 22. g4 {[%clk 0:01:25.1]} 22...
Bxe4 {[%clk 0:00:22.1]} 23. Nxe4 {[%clk 0:01:24.5]} 23... c4 {[%clk 0:00:09.8]}
24. g5 {[%clk 0:01:21.4]} 24... Rc8 {[%clk 0:00:02.8]} 25. Kf2 {[%clk
0:01:08.5]} 1-0

[Event "Early-Titled-Tuesday-Blitz-February-13-2024"]
[Site "Chess.com"]
[Date "2024.02.13"]
[Round "8"]
[White "tantaan"]
[Black "only_strong_moves"]
[Result "0-1"]
[WhiteElo "2505"]
[BlackElo "2678"]
[TimeControl "180+1"]
[EndTime "9:31:01 PST"]
[Termination "only_strong_moves won by resignation"]

1. e4 {[%clk 0:03:00.9]} 1... e5 {[%clk 0:02:59.8]} 2. Nc3 {[%clk 0:02:59.3]}
2... Nf6 {[%clk 0:02:59.6]} 3. Bc4 {[%clk 0:02:57.3]} 3... Nc6 {[%clk
0:02:59.2]} 4. d3 {[%clk 0:02:56.4]} 4... Be7 {[%clk 0:02:58.5]} 5. f4 {[%clk
0:02:55.4]} 5... exf4 {[%clk 0:02:59.4]} 6. Bxf4 {[%clk 0:02:55.2]} 6... Na5
{[%clk 0:02:55.6]} 7. Bb3 {[%clk 0:02:44.9]} 7... O-O {[%clk 0:02:54.6]} 8. Nf3
{[%clk 0:02:44.7]} 8... d6 {[%clk 0:02:54.3]} 9. O-O {[%clk 0:02:44.6]} 9...
Nxb3 {[%clk 0:02:54.6]} 10. axb3 {[%clk 0:02:44.6]} 10... d5 {[%clk 0:02:44.7]}
11. e5 {[%clk 0:02:39.1]} 11... Nh5 {[%clk 0:02:44.7]} 12. Be3 {[%clk
0:02:33.6]} 12... f5 {[%clk 0:02:44.9]} 13. d4 {[%clk 0:02:18.1]} 13... c6
{[%clk 0:02:40.7]} 14. Ne1 {[%clk 0:01:51.5]} 14... g6 {[%clk 0:02:35]} 15. Nd3
{[%clk 0:01:51.1]} 15... Bg5 {[%clk 0:02:27.9]} 16. Qd2 {[%clk 0:01:42.7]} 16...
Bxe3+ {[%clk 0:02:24.1]} 17. Qxe3 {[%clk 0:01:43.6]} 17... b6 {[%clk 0:02:20.2]}
18. b4 {[%clk 0:01:42.6]} 18... Be6 {[%clk 0:02:19.3]} 19. b5 {[%clk 0:01:38.8]}
19... c5 {[%clk 0:02:15.1]} 20. Ne2 {[%clk 0:01:33.9]} 20... c4 {[%clk
0:02:05.7]} 21. Nb4 {[%clk 0:01:14.6]} 21... Qd7 {[%clk 0:02:05.3]} 22. c3
{[%clk 0:00:44.5]} 22... Qxb5 {[%clk 0:02:04.1]} 23. Qg5 {[%clk 0:00:24.9]}
23... Qd7 {[%clk 0:01:59.2]} 24. Na6 {[%clk 0:00:22.1]} 24... Qg7 {[%clk
0:01:49.9]} 25. Nb4 {[%clk 0:00:20.8]} 25... h6 {[%clk 0:01:49]} 26. Qd2 {[%clk
0:00:20.1]} 26... g5 {[%clk 0:01:48.2]} 27. Nc2 {[%clk 0:00:20.3]} 27... f4
{[%clk 0:01:48]} 28. g3 {[%clk 0:00:17.5]} 28... Bh3 {[%clk 0:01:45]} 29. Rf2
{[%clk 0:00:16.4]} 29... fxg3 {[%clk 0:01:44.9]} 30. Nxg3 {[%clk 0:00:16.3]}
30... Nf4 {[%clk 0:01:43.1]} 31. Ne3 {[%clk 0:00:15.7]} 31... Be6 {[%clk
0:01:37.1]} 32. Raf1 {[%clk 0:00:13.4]} 32... h5 {[%clk 0:01:37.3]} 33. Kh1
{[%clk 0:00:10.5]} 33... h4 {[%clk 0:01:37.4]} 34. Ne2 {[%clk 0:00:10.6]} 34...
Nd3 {[%clk 0:01:36.4]} 35. Rxf8+ {[%clk 0:00:10.8]} 35... Rxf8 {[%clk
0:01:37.3]} 36. Rxf8+ {[%clk 0:00:11.2]} 36... Qxf8 {[%clk 0:01:38.2]} 37. Ng1
{[%clk 0:00:09.4]} 37... Bf5 {[%clk 0:01:34.5]} 38. Qg2 {[%clk 0:00:08.9]} 38...
Be4 {[%clk 0:01:34.2]} 0-1

[Event "Early-Titled-Tuesday-Blitz-February-13-2024"]
[Site "Chess.com"]
[Date "2024.02.13"]
[Round "8"]
[White "GrumbleBruno"]
[Black "ChessFanNM"]
[Result "1-0"]
[WhiteElo "2469"]
[BlackElo "2318"]
[TimeControl "180+1"]
[EndTime "9:31:04 PST"]
[Termination "GrumbleBruno won by resignation"]

1. e4 {[%clk 0:02:55.9]} 1... e5 {[%clk 0:02:58.9]} 2. Nf3 {[%clk 0:02:55.3]}
2... Nc6 {[%clk 0:02:58.5]} 3. Bb5 {[%clk 0:02:55.4]} 3... a6 {[%clk 0:02:58.6]}
4. Ba4 {[%clk 0:02:55.8]} 4... Nf6 {[%clk 0:02:57.8]} 5. d4 {[%clk 0:02:56.1]}
5... Nxe4 {[%clk 0:02:34.2]} 6. Qe2 {[%clk 0:02:55.2]} 6... d5 {[%clk
0:02:32.9]} 7. Nxe5 {[%clk 0:02:54]} 7... Be7 {[%clk 0:02:13.8]} 8. Nxc6 {[%clk
0:02:44.4]} 8... bxc6 {[%clk 0:02:13.6]} 9. Bxc6+ {[%clk 0:02:39.7]} 9... Bd7
{[%clk 0:02:13.7]} 10. Bxd5 {[%clk 0:02:21.4]} 10... Nf6 {[%clk 0:02:02.6]} 11.
Bxa8 {[%clk 0:02:18.6]} 11... Qxa8 {[%clk 0:02:00.8]} 12. O-O {[%clk 0:02:18.3]}
12... Be6 {[%clk 0:01:45.1]} 13. c4 {[%clk 0:02:14.5]} 13... c6 {[%clk
0:01:23.7]} 14. Nc3 {[%clk 0:02:07.6]} 14... O-O {[%clk 0:01:23.3]} 15. Bf4
{[%clk 0:01:57.4]} 15... Rd8 {[%clk 0:01:22.9]} 16. Rfd1 {[%clk 0:01:55.5]}
16... a5 {[%clk 0:01:20.5]} 17. Rac1 {[%clk 0:01:39.3]} 17... Bb4 {[%clk
0:01:19.5]} 18. Ne4 {[%clk 0:01:33.3]} 18... Nxe4 {[%clk 0:01:11.6]} 19. Qxe4
{[%clk 0:01:32.2]} 19... Bf8 {[%clk 0:01:11.6]} 20. Be5 {[%clk 0:01:23.5]} 20...
Qb7 {[%clk 0:00:46.1]} 21. b3 {[%clk 0:01:21.1]} 21... a4 {[%clk 0:00:36.9]} 22.
bxa4 {[%clk 0:01:11.1]} 22... Qb4 {[%clk 0:00:36.5]} 23. Qxc6 {[%clk 0:01:07.3]}
23... Rc8 {[%clk 0:00:34.1]} 24. Qb5 {[%clk 0:01:05.3]} 24... Qa3 {[%clk
0:00:33.7]} 25. d5 {[%clk 0:01:03.7]} 25... Bg4 {[%clk 0:00:33.3]} 26. Re1
{[%clk 0:00:57.6]} 26... h5 {[%clk 0:00:33.1]} 27. h3 {[%clk 0:00:56.4]} 27...
Be2 {[%clk 0:00:31.5]} 28. Qb3 {[%clk 0:00:52.4]} 28... Bxc4 {[%clk 0:00:26.9]}
29. Rxc4 {[%clk 0:00:49.2]} 1-0

[Event "Early-Titled-Tuesday-Blitz-February-13-2024"]
[Site "Chess.com"]
[Date "2024.02.13"]
[Round "8"]
[White "HaryKane"]
[Black "Suleyman_Chess06"]
[Result "1-0"]
[WhiteElo "2591"]
[BlackElo "2751"]
[TimeControl "180+1"]
[EndTime "9:31:08 PST"]
[Termination "HaryKane won by resignation"]

1. d4 {[%clk 0:03:00.9]} 1... d5 {[%clk 0:02:58.2]} 2. e3 {[%clk 0:02:59.8]}
2... Nf6 {[%clk 0:02:57.9]} 3. f4 {[%clk 0:03:00]} 3... c6 {[%clk 0:02:58.4]} 4.
Nf3 {[%clk 0:03:00.2]} 4... Bf5 {[%clk 0:02:58.6]} 5. Bd3 {[%clk 0:02:59.8]}
5... e6 {[%clk 0:02:59.2]} 6. O-O {[%clk 0:02:59.6]} 6... Be7 {[%clk 0:02:59.3]}
7. Qe2 {[%clk 0:02:58.4]} 7... Nbd7 {[%clk 0:02:59.8]} 8. Nbd2 {[%clk
0:02:58.1]} 8... O-O {[%clk 0:03:00.4]} 9. Ne5 {[%clk 0:02:55.3]} 9... c5 {[%clk
0:02:57.5]} 10. c3 {[%clk 0:02:49.9]} 10... c4 {[%clk 0:02:57.3]} 11. Bb1 {[%clk
0:02:47.5]} 11... b5 {[%clk 0:02:51.7]} 12. e4 {[%clk 0:02:45.5]} 12... dxe4
{[%clk 0:02:49.9]} 13. Nxe4 {[%clk 0:02:45.3]} 13... Nxe5 {[%clk 0:02:47.9]} 14.
fxe5 {[%clk 0:02:43.1]} 14... Nd5 {[%clk 0:02:43.6]} 15. Ng3 {[%clk 0:02:28.7]}
15... Bxb1 {[%clk 0:02:38.8]} 16. Rxb1 {[%clk 0:02:29.6]} 16... b4 {[%clk
0:02:39.2]} 17. Bd2 {[%clk 0:02:24.7]} 17... bxc3 {[%clk 0:02:37.2]} 18. bxc3
{[%clk 0:02:25.6]} 18... Qa5 {[%clk 0:02:31.7]} 19. Qg4 {[%clk 0:02:09.5]} 19...
Rfb8 {[%clk 0:02:11.2]} 20. Bh6 {[%clk 0:01:54.6]} 20... g6 {[%clk 0:01:43.8]}
21. Qf3 {[%clk 0:01:51.1]} 21... Rf8 {[%clk 0:01:34.9]} 22. Bxf8 {[%clk
0:01:50.6]} 22... Rxf8 {[%clk 0:01:34.8]} 23. Ne4 {[%clk 0:01:48.6]} 23... Qa6
{[%clk 0:01:19.6]} 24. Rb2 {[%clk 0:01:38.5]} 24... Qc6 {[%clk 0:01:09.8]} 25.
Rbf2 {[%clk 0:01:32]} 25... Qa4 {[%clk 0:00:59]} 26. Qh3 {[%clk 0:01:23.5]}
26... Qc6 {[%clk 0:00:49.4]} 27. Qh6 {[%clk 0:01:17.5]} 27... f5 {[%clk
0:00:17.6]} 28. exf6 {[%clk 0:01:14.7]} 28... Ba3 {[%clk 0:00:15.4]} 29. f7+
{[%clk 0:00:55.5]} 29... Kh8 {[%clk 0:00:14.5]} 30. Ng5 {[%clk 0:00:56.1]} 1-0

[Event "Early-Titled-Tuesday-Blitz-February-13-2024"]
[Site "Chess.com"]
[Date "2024.02.13"]
[Round "8"]
[White "rhungaski"]
[Black "NikitaShnadrygin"]
[Result "0-1"]
[WhiteElo "2499"]
[BlackElo "2638"]
[TimeControl "180+1"]
[EndTime "9:31:08 PST"]
[Termination "NikitaShnadrygin won by resignation"]

1. e4 {[%clk 0:03:00.9]} 1... c5 {[%clk 0:02:59.7]} 2. Nf3 {[%clk 0:03:00.6]}
2... e6 {[%clk 0:03:00.1]} 3. d4 {[%clk 0:03:00.8]} 3... cxd4 {[%clk 0:03:00.6]}
4. Nxd4 {[%clk 0:03:01.3]} 4... Nf6 {[%clk 0:03:01.3]} 5. Nc3 {[%clk 0:03:00.7]}
5... Nc6 {[%clk 0:03:01.5]} 6. Ndb5 {[%clk 0:02:59.4]} 6... Bb4 {[%clk 0:03:01]}
7. a3 {[%clk 0:02:59.4]} 7... Bxc3+ {[%clk 0:03:01.2]} 8. Nxc3 {[%clk
0:03:00.3]} 8... d5 {[%clk 0:03:00.5]} 9. exd5 {[%clk 0:03:01.2]} 9... exd5
{[%clk 0:03:00.9]} 10. Bd3 {[%clk 0:03:00.9]} 10... O-O {[%clk 0:03:01.2]} 11.
O-O {[%clk 0:03:00.7]} 11... Bg4 {[%clk 0:03:01.1]} 12. f3 {[%clk 0:02:47.2]}
12... Bh5 {[%clk 0:03:00.7]} 13. Bg5 {[%clk 0:02:38]} 13... Qb6+ {[%clk
0:03:00.5]} 14. Kh1 {[%clk 0:02:38.2]} 14... Ne4 {[%clk 0:02:56.3]} 15. Nxe4
{[%clk 0:02:37.1]} 15... dxe4 {[%clk 0:02:44.6]} 16. Bxe4 {[%clk 0:02:38]} 16...
Qxb2 {[%clk 0:02:44.4]} 17. Qd6 {[%clk 0:02:38.5]} 17... Bg6 {[%clk 0:02:30.5]}
18. Rab1 {[%clk 0:02:15.4]} 18... Qc3 {[%clk 0:02:06.8]} 19. Bd5 {[%clk
0:01:35.2]} 19... Rfd8 {[%clk 0:01:02.6]} 20. Bxd8 {[%clk 0:01:29.1]} 20... Rxd8
{[%clk 0:01:03.5]} 21. Qc7 {[%clk 0:01:22]} 21... Rxd5 {[%clk 0:01:03.6]} 22.
Qc8+ {[%clk 0:01:22]} 22... Rd8 {[%clk 0:01:03.4]} 23. Qxb7 {[%clk 0:01:22.1]}
23... h5 {[%clk 0:00:52.4]} 24. Qc7 {[%clk 0:01:17]} 24... Rd2 {[%clk
0:00:37.3]} 25. Rb8+ {[%clk 0:00:46.1]} 25... Kh7 {[%clk 0:00:37]} 26. Rc8
{[%clk 0:00:46.6]} 26... Rxc2 {[%clk 0:00:34.4]} 27. h4 {[%clk 0:00:41.2]} 27...
Qc4 {[%clk 0:00:32.8]} 28. Kg1 {[%clk 0:00:36.4]} 28... Qd4+ {[%clk 0:00:28]}
0-1

[Event "Early-Titled-Tuesday-Blitz-February-13-2024"]
[Site "Chess.com"]
[Date "2024.02.13"]
[Round "8"]
[White "kakarot_001"]
[Black "scarabee43"]
[Result "0-1"]
[WhiteElo "2658"]
[BlackElo "2871"]
[TimeControl "180+1"]
[EndTime "9:31:11 PST"]
[Termination "scarabee43 won by resignation"]

1. Nf3 {[%clk 0:03:00.9]} 1... d5 {[%clk 0:02:59.5]} 2. g3 {[%clk 0:02:56.8]}
2... Nf6 {[%clk 0:02:59.2]} 3. Bg2 {[%clk 0:02:56.2]} 3... e6 {[%clk 0:02:59.1]}
4. O-O {[%clk 0:02:56.1]} 4... Be7 {[%clk 0:02:59.8]} 5. d3 {[%clk 0:02:56.1]}
5... O-O {[%clk 0:03:00.3]} 6. Nbd2 {[%clk 0:02:56.7]} 6... a5 {[%clk
0:02:58.7]} 7. e4 {[%clk 0:02:56.7]} 7... a4 {[%clk 0:02:59.4]} 8. a3 {[%clk
0:02:55.9]} 8... b5 {[%clk 0:02:58.4]} 9. Re1 {[%clk 0:02:55.9]} 9... c5 {[%clk
0:02:56.9]} 10. e5 {[%clk 0:02:55.8]} 10... Nfd7 {[%clk 0:02:56.8]} 11. Nf1
{[%clk 0:02:56.7]} 11... Nc6 {[%clk 0:02:46.3]} 12. h4 {[%clk 0:02:56.9]} 12...
Bb7 {[%clk 0:02:29.1]} 13. Bf4 {[%clk 0:02:54.7]} 13... d4 {[%clk 0:02:28.7]}
14. h5 {[%clk 0:02:53]} 14... h6 {[%clk 0:02:28.6]} 15. N1h2 {[%clk 0:02:52.5]}
15... Nb6 {[%clk 0:02:24.4]} 16. Ng4 {[%clk 0:02:51.1]} 16... Nd5 {[%clk
0:02:24.8]} 17. Bd2 {[%clk 0:02:50.9]} 17... c4 {[%clk 0:02:10.9]} 18. Nfh2
{[%clk 0:02:40.5]} 18... cxd3 {[%clk 0:02:09.2]} 19. cxd3 {[%clk 0:02:38.6]}
19... Kh8 {[%clk 0:02:05]} 20. Be4 {[%clk 0:02:37]} 20... Na5 {[%clk 0:01:53.9]}
21. Qf3 {[%clk 0:02:24.4]} 21... Nb3 {[%clk 0:01:53.6]} 22. Bxh6 {[%clk
0:02:13]} 22... gxh6 {[%clk 0:01:44.7]} 23. Nxh6 {[%clk 0:02:13.9]} 23... f5
{[%clk 0:01:39.6]} 24. exf6 {[%clk 0:01:52.1]} 24... Bxf6 {[%clk 0:01:38.7]} 25.
N2g4 {[%clk 0:01:38.7]} 25... Qe7 {[%clk 0:01:19.4]} 26. Rad1 {[%clk 0:01:18.3]}
26... Bg5 {[%clk 0:01:19.4]} 27. Qg2 {[%clk 0:01:16.5]} 27... Qg7 {[%clk
0:01:18.2]} 28. Bf3 {[%clk 0:01:02.4]} 28... Ne3 {[%clk 0:01:15.1]} 29. Rxe3
{[%clk 0:00:56.2]} 29... dxe3 {[%clk 0:01:10.1]} 30. Bxb7 {[%clk 0:00:50.1]}
30... exf2+ {[%clk 0:01:10.6]} 31. Kf1 {[%clk 0:00:43.9]} 31... Ra7 {[%clk
0:01:07.6]} 32. Be4 {[%clk 0:00:21.5]} 32... Bxh6 {[%clk 0:01:07.6]} 33. Bg6
{[%clk 0:00:20.1]} 33... Rc7 {[%clk 0:01:03.6]} 0-1

[Event "Early-Titled-Tuesday-Blitz-February-13-2024"]
[Site "Chess.com"]
[Date "2024.02.13"]
[Round "8"]
[White "guillembaches"]
[Black "Schattman"]
[Result "0-1"]
[WhiteElo "2553"]
[BlackElo "2417"]
[TimeControl "180+1"]
[EndTime "9:31:11 PST"]
[Termination "Schattman won on time"]

1. d4 {[%clk 0:03:00.9]} 1... Nf6 {[%clk 0:02:58.1]} 2. Nf3 {[%clk 0:03:01.2]}
2... g6 {[%clk 0:02:58]} 3. Bg5 {[%clk 0:03:01.5]} 3... Bg7 {[%clk 0:02:57.3]}
4. Nbd2 {[%clk 0:03:01.8]} 4... O-O {[%clk 0:02:56.7]} 5. c3 {[%clk 0:03:01.1]}
5... d5 {[%clk 0:02:55]} 6. e3 {[%clk 0:03:01.1]} 6... h6 {[%clk 0:02:50.4]} 7.
Bh4 {[%clk 0:03:00.9]} 7... g5 {[%clk 0:02:51]} 8. Bg3 {[%clk 0:03:00.9]} 8...
Bf5 {[%clk 0:02:50.3]} 9. Be2 {[%clk 0:02:56.6]} 9... c6 {[%clk 0:02:50.5]} 10.
O-O {[%clk 0:02:53.8]} 10... Nbd7 {[%clk 0:02:50.4]} 11. b4 {[%clk 0:02:42]}
11... a5 {[%clk 0:02:49.2]} 12. a4 {[%clk 0:02:39]} 12... Re8 {[%clk 0:02:45.8]}
13. Qb3 {[%clk 0:02:31.9]} 13... Ne4 {[%clk 0:02:44.7]} 14. Nxe4 {[%clk
0:02:25.1]} 14... Bxe4 {[%clk 0:02:45.6]} 15. Nd2 {[%clk 0:02:19.3]} 15... Bg6
{[%clk 0:02:43.3]} 16. b5 {[%clk 0:02:06.7]} 16... e5 {[%clk 0:02:38]} 17. Rfd1
{[%clk 0:01:47.9]} 17... f5 {[%clk 0:02:08.4]} 18. dxe5 {[%clk 0:01:44.7]} 18...
Nxe5 {[%clk 0:02:02.2]} 19. Rac1 {[%clk 0:01:40.7]} 19... Bf7 {[%clk 0:01:59]}
20. c4 {[%clk 0:01:36]} 20... f4 {[%clk 0:01:37.6]} 21. exf4 {[%clk 0:01:28.8]}
21... Ng6 {[%clk 0:01:37.2]} 22. Bh5 {[%clk 0:01:14.8]} 22... gxf4 {[%clk
0:01:25.5]} 23. Bxg6 {[%clk 0:01:04.8]} 23... Bxg6 {[%clk 0:01:21.4]} 24. Bxf4
{[%clk 0:01:04.9]} 24... Bf7 {[%clk 0:01:12.9]} 25. Qg3 {[%clk 0:00:58.7]} 25...
Qf6 {[%clk 0:01:05.7]} 26. cxd5 {[%clk 0:00:41]} 26... Bxd5 {[%clk 0:01:04.9]}
27. bxc6 {[%clk 0:00:39.5]} 27... bxc6 {[%clk 0:01:03.5]} 28. Nc4 {[%clk
0:00:31.3]} 28... Re4 {[%clk 0:00:56.2]} 0-1